[Event "Karel Janecek Open 2024"]
[Site "Prague"]
[Date "2024.02.28"]
[Round "1.1"]
[White "Safarli, Eltaj"]
[Black "Nesse, David"]
[Result "1-0"]
[ECO "B31"]
[WhiteElo "2604"]
[BlackElo "2002"]
[Annotator "TA"]
[PlyCount "65"]
[EventDate "2024.02.22"]
[EventType "swiss"]
[EventCountry "CZE"]
[SourceTitle "playchess.com"]
[Source "ChessBase"]
[SourceQuality "1"]
[TimeControl "40/5400+30:1800+30"]

{[%evp 10,65,18,6,18,0,14,14,12,20,15,18,24,17,11,19,9,16,19,21,66,60,54,54,51,61,60,60,56,45,59,51,77,40,50,57,58,58,57,63,53,51,71,29,42,44,35,20,29,29,65,50,104,97,396,357,463,447]} 1. e4 {[%emt 0:00:03]} c5 {[%emt 0:05:37]} 2. Nf3 {[%emt 0:00:10]} Nc6 {[%emt 0:00:05]} 3. Bb5 {[%emt 0:00:11]} g6 {[%emt 0:00:06]} 4. O-O {[%emt 0:01:15]} Bg7 {[%emt 0:00:09]} 5. Nc3 {[%emt 0:00:05]} d6 {[%emt 0:00:16]} 6. e5 {[%emt 0:01:51]} dxe5 {[%emt 0:02:19]} 7. Bxc6+ {[%emt 0:00:23]} bxc6 {[%emt 0:00:05]} 8. Re1 {[%emt 0:00:55]} Qc7 {[%emt 0:01:19] The position is equal.} 9. d3 {[%emt 0:00:11]} c4 {[%emt 0:00:18]} 10. h3 {[%emt 0:00:17] Dodges Bg4} ({Much worse is} 10. dxc4 f5 $15) 10... cxd3 {[%emt 0:00:18]} 11. cxd3 {[%emt 0:00:04]} Be6 {[%emt 0:01:28]} 12. Qe2 {[%emt 0:01:35][%cal Rf3e5]} Nf6 {[%emt 0:02:02]} 13. Nxe5 {[%emt 0:01:18]} Nd5 {[%emt 0:05:14] Repels Bf4} 14. Nxd5 {[%emt 0:05:12]} Qxe5 {[%emt 0:01:38]} 15. Qxe5 {[%emt 0:02:25]} Bxe5 {[%emt 0:00:08] This pair of bishops is nice.} 16. Nxe7 {[%emt 0:00:14]} Kxe7 {[%emt 0:03:34]} 17. Rxe5 {[%emt 0:00:15]} Rhd8 {[%emt 0:01:28]} 18. Re3 {[%emt 0:03:07]} Rd5 {[%emt 0:04:04]} 19. Kf1 {[%emt 0:03:09]} Rad8 {[%emt 0:14:04]} 20. Ke2 {[%emt 0:00:41]} Kf8 {[%emt 0:00:43]} 21. g4 {[%emt 0:01:30]} Ra5 {[%emt 0:07:07]} 22. a4 {[%emt 0:03:06]} Bb3 {[%emt 0:16:55]} 23. Ra3 {[%emt 0:02:04]} Rb8 {[%emt 0:00:17][%cal Oa5c5]} 24. Re4 {[%emt 0:02:04]} Bd5 {[%emt 0:00:49]} 25. Rd4 {[%emt 0:02:48]} Bg2 {[%emt 0:01:50]} 26. Bh6+ {[%emt 0:02:35]} Ke7 {[%emt 0:03:05]} 27. b4 {[%emt 0:03:19]} c5 {[%emt 0:06:31]} 28. bxc5 {[%emt 0:02:29] Bf4 is the strong threat.} Rxc5 {[%emt 0:00:00]} 29. Ra2 {[%emt 0:08:22] Against Rb2+} g5 {[%emt 0:03:56][%cal Ob8b6] [#] ...Rb6! would now be deadly.} 30. f4 {[%emt 0:01:18]} f6 {[%emt 0:03:58]} ({Black should play} 30... Rd5 $14 31. Rxd5 (31. Bxg5+ f6 $11) 31... Bxd5) 31. Kf2 {[%emt 0:04:25]} Bxh3 $2 {[%emt 0:04:56][%mdl 8192]} (31... Rd5 $16 32. Re2+ Kd6 33. Rxd5+ Bxd5 34. fxg5 fxg5 35. Bxg5 Rb3) 32. Kg3 {[%emt 0:00:00]} Bf1 {[%emt 0:02:36] Prevents Re2+.} 33. Rf2 {[%emt 0:00:00] Weighted Error Value: White=0.08 (flawless) /Black=0.36.  Loses game:     	---       	Black=1      Mistake:       	---       	Black=1      Inaccurate:     	White=2     	Black=3      OK:         	White=14    	Black=9} 1-0

[Event "Karel Janecek Open 2024"]
[Site "Prague"]
[Date "2024.02.28"]
[Round "1.2"]
[White "Phatak Aanjaneya"]
[Black "Bernadskiy, Vitaliy"]
[Result "0-1"]
[ECO "B80"]
[WhiteElo "1974"]
[BlackElo "2566"]
[Annotator "TA"]
[PlyCount "66"]
[EventDate "2024.02.22"]
[EventType "swiss"]
[EventCountry "CZE"]
[SourceTitle "playchess.com"]
[Source "ChessBase"]
[SourceQuality "1"]
[TimeControl "40/5400+30:1800+30"]

{[%evp 14,65,41,37,56,45,50,53,58,26,42,35,50,18,40,29,71,65,60,50,41,0,0,0,0,-22,-47,-43,-29,-35,-36,-45,-26,-42,-43,-37,-46,-42,-36,-56,0,-376,-392,-29988,-29989,-29989,-29990,-29996,-29997,-29997,-29998,-29998,-29999,-29999]} 1. e4 {[%emt 0:00:19]} c5 {[%emt 0:00:06]} 2. Nf3 {[%emt 0:00:07]} Nc6 {[%emt 0:00:22]} 3. d4 {[%emt 0:00:21]} cxd4 {[%emt 0:00:06]} 4. Nxd4 {[%emt 0:00:19]} e6 {[%emt 0:00:13]} 5. Nc3 {[%emt 0:00:12]} d6 {[%emt 0:00:30]} 6. Be3 {[%emt 0:01:37]} Nf6 {[%emt 0:00:17]} 7. f3 {[%emt 0:04:29]} Be7 {[%emt 0:00:50]} 8. Qd2 {[%emt 0:01:20]} h5 {[%emt 0:03:32][%cal Bh7h5,Bh5h4][%mdl 32]} 9. O-O-O {[%emt 0:00:26]} a6 {[%emt 0:00:03] Dodges Ndb5} 10. Kb1 {[%emt 0:01:09]} Bd7 {[%emt 0:01:00] White is slightly better.} 11. Rg1 {[%emt 0:06:48]} Rc8 {[%emt 0:01:35]} 12. h3 {[%emt 0:00:19]} h4 {[%emt 0:03:04]} 13. Qf2 {[%emt 0:06:09][%cal Od4b5] Strongly threatening Ndb5!} Qc7 {[%emt 0:05:49]} 14. Nxc6 {[%emt 0:07:06]} Bxc6 {[%emt 0:01:22] [#]} 15. Bb6 $1 {[%emt 0:00:38]} Qb8 {[%emt 0:00:09]} 16. g4 {[%emt 0:04:37]} hxg3 {[%emt 0:00:37]} 17. Rxg3 {[%emt 0:02:36]} g6 {[%emt 0:01:53]} 18. Ba7 {[%emt 0:08:14]} Qa8 {[%emt 0:01:01]} 19. Bd4 {[%emt 0:00:16]} b5 {[%emt 0:00:37]} 20. Bd3 {[%emt 0:02:59]} e5 {[%emt 0:05:15]} 21. Be3 {[%emt 0:00:16][%cal Bd4e3,Be3g5,Bg5e7][%mdl 32]} b4 {[%emt 0:00:17]} 22. Ne2 {[%emt 0:00:16]} Bd7 {[%emt 0:02:09][%cal Oa6a5]} 23. Bg5 {[%emt 0:01:53]} a5 {[%emt 0:03:13]} 24. Qe3 {[%emt 0:02:55]} Qc6 {[%emt 0:01:51]} 25. f4 {[%emt 0:01:45]} Nh5 {[%emt 0:01:57]} 26. Bxe7 $1 {[%emt 0:04:59]} Nxg3 {[%emt 0:01:06]} ({Better is} 26... Kxe7 $15 27. Rg5 Qc5) 27. Qxg3 $4 {[%emt 0:02:02][%mdl 8192]} (27. fxe5 $1 $11 {and White stays safe.} dxe5 (27... Kxe7 28. Qxg3 dxe5 29. Qxe5+ Qe6 30. Qd4 $11) 28. Qxg3 Kxe7 29. Qxe5+ Be6 30. Rf1 (30. Qxa5 $2 Qc5 $17) (30. Nf4 Rhd8 $11)) 27... Rxh3 $19 {[%emt 0:02:00]} ({Inferior is} 27... Kxe7 28. fxe5 Rxh3 (28... Bxh3 $2 {too greedy.} 29. Nf4 $18) 29. exd6+ Kf8 (29... Qxd6 $2 {perishes.} 30. Qxd6+ Kxd6 31. Bb5+ Kc7 32. Rxd7+ Kb6 33. a4 $16) 30. Qe5 $11) 28. Qg5 {[%emt 0:05:41] [#]} (28. Qe1 $19 Kxe7 29. Qd2) 28... Rxd3 $1 {[%emt 0:00:15][%mdl 512] Black mates.} 29. Rc1 {[%emt 0:00:12] [#]} Rd1 $3 {[%emt 0:00:03][%mdl 512]} 30. fxe5 {[%emt 0:03:19]} (30. Nd4 exd4) 30... Qxc2+ {[%emt 0:00:10]} 31. Ka1 {[%emt 0:00:06]} Qxc1+ {[%emt 0:00:06]} 32. Nxc1 {[%emt 0:00:07]} Rcxc1+ {[%emt 0:00:03]} 33. Qxc1 {[%emt 0:00:05]} Rxc1# {[%emt 0:00:04] Weighted Error Value: White=0.44/Black=0.06 (flawless) .  Loses game:     	White=1     	---        Mistake:       	White=1     	Black=1      Inaccurate:     	White=2     	Black=1      OK:         	White=7     	Black=11     Best:        	---       	Black=1      Strong:       	White=2     	---        Brilliant:      	---       	Black=1} 0-1

[Event "Karel Janecek Open 2024"]
[Site "Prague"]
[Date "2024.02.28"]
[Round "1.3"]
[White "Amar, Elham"]
[Black "Kudrytskyi, Stanislav"]
[Result "1-0"]
[ECO "C41"]
[WhiteElo "2555"]
[BlackElo "1992"]
[Annotator "TA"]
[PlyCount "81"]
[EventDate "2024.02.22"]
[EventType "swiss"]
[EventCountry "CZE"]
[SourceTitle "playchess.com"]
[Source "ChessBase"]
[SourceQuality "1"]
[TimeControl "40/5400+30:1800+30"]

{[%evp 16,81,42,56,54,33,64,54,57,60,58,31,35,45,57,57,70,56,53,38,93,67,53,50,45,48,113,119,118,118,135,94,127,133,241,241,259,252,274,249,237,240,252,233,283,283,320,304,345,340,352,345,385,382,439,430,401,410,576,562,1017,1006,954,903,860,825,1304,824]} 1. e4 {[%emt 0:05:33]} d6 {[%emt 0:00:07]} 2. d4 {[%emt 0:00:06]} Nf6 {[%emt 0:00:05]} 3. Nc3 {[%emt 0:00:21]} e5 {[%emt 0:00:06]} 4. Nf3 {[%emt 0:00:46]} Nbd7 {[%emt 0:00:10]} 5. Bc4 {[%emt 0:01:00]} Be7 {[%emt 0:00:06]} 6. a4 {[%emt 0:00:36][%cal Ba2a4,Ba4a5][%mdl 32]} O-O {[%emt 0:00:38]} 7. O-O {[%emt 0:00:39]} c6 {[%emt 0:01:20]} 8. Re1 {[%emt 0:03:13]} h6 {[%emt 0:04:23]} 9. h3 {[%emt 0:03:16]} exd4 {[%emt 0:05:03]} 10. Qxd4 {[%emt 0:04:16]} Qb6 {[%emt 0:04:32]} 11. a5 {[%emt 0:03:02] White has more active pieces.} Qxd4 {[%emt 0:21:48] White is slightly better.} 12. Nxd4 {[%emt 0:00:07]} Re8 {[%emt 0:00:14]} 13. Bf4 {[%emt 0:10:18]} Bf8 {[%emt 0:06:58]} 14. Rad1 {[%emt 0:08:00]} Nc5 {[%emt 0:14:17]} 15. f3 {[%emt 0:00:33]} Ne6 {[%emt 0:01:25]} 16. Bxe6 {[%emt 0:10:19]} Bxe6 {[%emt 0:08:21]} 17. a6 {[%emt 0:00:32]} Bc8 {[%emt 0:05:07]} ({Black should play} 17... bxa6 $14 18. Nxc6 Rec8) 18. axb7 {[%emt 0:01:47]} Bxb7 {[%emt 0:00:10]} 19. Nf5 {[%emt 0:00:03]} d5 {[%emt 0:01:32]} 20. Bd6 {[%emt 0:06:13]} Rad8 {[%emt 0:02:54] White stays focused until the end.} ({Black should try} 20... Bc8 $14) 21. Bxf8 $16 {[%emt 0:00:46]} Kxf8 {[%emt 0:01:02] [#]} 22. e5 $1 $36 {[%emt 0:00:21][%mdl 2048] Black is under strong pressure.} Nh5 {[%emt 0:00:30] Black is weak on the dark squares} 23. Na4 {[%emt 0:01:05] Nc5 is the strong threat.} Nf4 {[%emt 0:05:21]} 24. Nc5 {[%emt 0:01:22]} Ba8 {[%emt 0:02:40]} (24... Bc8 $16 25. Nd4 Re7) 25. Nd4 $18 {[%emt 0:01:06] And now Ra1 would win. Excellent horsemanship.} Ne6 {[%emt 0:00:30]} 26. Ndxe6+ {[%emt 0:00:39]} fxe6 {[%emt 0:00:07]} 27. Rd4 {[%emt 0:01:41]} (27. Ra1 Re7 28. Ra4 Rb8 $16) 27... Re7 {[%emt 0:02:54]} 28. Ra1 {[%emt 0:00:17] Threatens to win with Rda4.} Rb8 {[%emt 0:00:15]} 29. b4 {[%emt 0:02:13]} Ke8 {[%emt 0:03:55]} 30. c3 {[%emt 0:00:35]} Rc8 {[%emt 0:00:59]} 31. f4 {[%emt 0:00:38]} g6 {[%emt 0:00:45]} 32. g4 {[%emt 0:00:49]} Rcc7 {[%emt 0:00:55]} 33. Kg2 {[%emt 0:00:19]} Kd8 {[%emt 0:01:15]} 34. Rd2 {[%emt 0:00:17]} Kc8 {[%emt 0:01:41]} 35. Kg3 {[%emt 0:00:14]} Bb7 {[%emt 0:02:56]} 36. Rxa7 {[%emt 0:00:22]} Kb8 {[%emt 0:00:21]} (36... g5 {keeps fighting.} 37. Rf2 Re8) 37. Rda2 {[%emt 0:00:09] White is clearly winning.} Rc8 {[%emt 0:00:32] [#]} 38. f5 $1 {[%emt 0:01:41][%mdl 512]} gxf5 {[%emt 0:01:49]} 39. gxf5 {[%emt 0:00:03]} exf5 {[%emt 0:00:22]} 40. Kf4 {[%emt 0:00:36]} Rf8 {[%emt 0:01:06]} 41. e6 {[%emt 0:30:05] Weighted Error Value: White=0.07 (flawless) /Black=0.31.  Mistake:       	---       	Black=4      Inaccurate:     	White=2     	Black=3      OK:         	White=14    	Black=7      Strong:       	White=1     	---        Brilliant:      	White=1     	---} 1-0

[Event "Karel Janecek Open 2024"]
[Site "Prague"]
[Date "2024.02.28"]
[Round "1.4"]
[White "Ilandzis, Spyridon"]
[Black "Li, Di"]
[Result "0-1"]
[ECO "D37"]
[WhiteElo "1925"]
[BlackElo "2563"]
[Annotator "TA"]
[PlyCount "38"]
[EventDate "2024.02.22"]
[EventType "swiss"]
[EventCountry "CZE"]
[SourceTitle "playchess.com"]
[Source "ChessBase"]
[SourceQuality "1"]
[TimeControl "40/5400+30:1800+30"]

{[%evp 9,38,11,13,18,25,-16,-19,-58,-46,-48,-40,-50,-47,-42,-45,-66,-46,-268,-276,-277,-278,-267,-266,-267,-267,-504,-487,-632,-624,-614,-596]} 1. d4 {[%emt 0:00:16]} Nf6 {[%emt 0:00:18]} 2. c4 {[%emt 0:00:19][%cal Bc2c4,Bc4c5,Bc5b6][%mdl 32]} e6 {[%emt 0:00:06]} 3. Nf3 {[%emt 0:00:18]} d5 {[%emt 0:00:27]} 4. Nc3 {[%emt 0:00:29]} a6 {[%emt 0:00:45]} 5. c5 {[%emt 0:03:45]} b6 {[%emt 0:00:20]} 6. cxb6 {[%emt 0:00:16]} c5 {[%emt 0:00:17]} (6... cxb6 {simplifies} 7. Bf4 Bd6 8. e3 Nc6) 7. Bg5 {[%emt 0:04:07]} cxd4 {[%emt 0:04:41]} 8. Qxd4 {[%emt 0:02:11] The position is equal.} Nc6 {[%emt 0:00:33]} 9. Qa4 {[%emt 0:04:02]} Bd7 {[%emt 0:02:17]} (9... Qxb6 {simplifies} 10. Bxf6 gxf6 11. e3 Bd7) 10. e3 {[%emt 0:03:14]} Qxb6 {[%emt 0:00:55]} 11. Bxf6 {[%emt 0:06:42]} gxf6 {[%emt 0:00:07]} 12. Bb5 {[%emt 0:07:54]} Rb8 {[%emt 0:20:07]} ({Don't play} 12... axb5 $6 13. Qxa8+ Nb8 14. Rc1 $16) 13. Qxa6 {[%emt 0:01:45]} (13. Bxc6 $15 Bxc6 14. Qf4) 13... Qxa6 $19 {[%emt 0:01:06]} 14. Bxa6 {[%emt 0:00:10] [#]} Nb4 $1 {[%emt 0:00:24]} ({Weaker is} 14... Rxb2 15. O-O $15) 15. Be2 {[%emt 0:01:41]} Nc2+ {[%emt 0:00:05]} 16. Kd2 {[%emt 0:01:18]} Nxa1 {[%emt 0:00:13]} 17. Rxa1 $2 {[%emt 0:01:40]} (17. Rb1 {was forced.}) 17... Rxb2+ {[%emt 0:00:05] Black is clearly winning.} 18. Kd1 {[%emt 0:04:05]} Bb4 {[%emt 0:00:39]} 19. Rc1 {[%emt 0:00:36]} Ke7 {[%emt 0:00:38] White got outplayed after the opening.   Weighted Error Value: White=0.61/Black=0.04 (flawless) .  Loses game:     	White=1     	---        Mistake:       	White=1     	---        Inaccurate:     	White=2     	---        OK:         	White=4     	Black=4      Best:        	White=1     	Black=3      Strong:       	---       	Black=1} 0-1

[Event "Karel Janecek Open 2024"]
[Site "Prague"]
[Date "2024.02.28"]
[Round "1.5"]
[White "Kourkoulos-Arditis, Stamatis"]
[Black "Tesar, Jakub"]
[Result "1-0"]
[ECO "B12"]
[WhiteElo "2547"]
[BlackElo "1758"]
[Annotator "TA"]
[PlyCount "93"]
[EventDate "2024.02.22"]
[EventType "swiss"]
[EventCountry "CZE"]
[SourceTitle "playchess.com"]
[Source "ChessBase"]
[SourceQuality "1"]
[TimeControl "40/5400+30:1800+30"]

{[%evp 12,93,26,35,49,21,39,20,8,4,23,30,52,45,69,60,52,49,135,101,132,90,95,97,92,60,85,72,52,72,77,77,95,122,122,132,119,116,220,149,205,191,206,195,477,210,212,154,170,131,693,709,712,706,703,705,675,679,653,672,678,682,700,689,693,695,839,835,842,836,846,839,841,865,850,697,741,740,870,852,1117,1108,1441,1429]} 1. e4 {[%emt 0:01:57]} c6 {[%emt 0:00:15]} 2. d4 {[%emt 0:00:27]} d5 {[%emt 0:00:07]} 3. e5 {[%emt 0:00:11]} Bf5 {[%emt 0:00:09]} 4. Nf3 {[%emt 0:00:08]} e6 {[%emt 0:00:09]} 5. Be2 {[%emt 0:00:41]} Nd7 {[%emt 0:00:11]} 6. O-O {[%emt 0:00:17]} Ne7 {[%emt 0:00:09]} 7. Nbd2 {[%emt 0:00:24]} a5 {[%emt 0:02:14]} 8. a4 {[%emt 0:01:00]} c5 {[%emt 0:01:49]} 9. dxc5 {[%emt 0:12:17]} Nc6 {[%emt 0:00:43] The position is equal.} 10. Nb3 {[%emt 0:00:58]} Bg6 {[%emt 0:11:25][%cal Of8e7]} 11. Bb5 {[%emt 0:14:40]} Nxc5 {[%emt 0:04:17]} 12. Nfd4 {[%emt 0:00:40]} Qc7 {[%emt 0:07:23]} 13. Be3 {[%emt 0:02:17]} Nd7 {[%emt 0:05:24]} 14. f4 {[%emt 0:01:36]} h5 {[%emt 0:04:23]} (14... Be7 $14) 15. f5 {[%emt 0:12:04]} exf5 {[%emt 0:05:14]} 16. e6 {[%emt 0:00:32]} Nf6 {[%emt 0:03:09]} 17. exf7+ {[%emt 0:09:23]} (17. Nxf5 $6 fxe6 18. Bf4 e5 $11) 17... Kxf7 {[%emt 0:00:09]} 18. Nxf5 {[%emt 0:00:19]} Qe5 {[%emt 0:07:29]} 19. Bxc6 {[%emt 0:01:52]} bxc6 {[%emt 0:00:43]} 20. Bd4 {[%emt 0:00:51]} Qe4 {[%emt 0:07:18]} 21. Nd2 {[%emt 0:04:44][%cal Bb3d2,Bd2f3,Bf3g5][%mdl 32] Excellent horsemanship.} Qe6 {[%emt 0:02:00] [#]} 22. Nf3 $1 {[%emt 0:00:58] Threatens to win with Ng5+.} Kg8 {[%emt 0:01:44]} 23. Ng5 $36 {[%emt 0:00:35][%mdl 2048] White is on the roll.} Qe8 {[%emt 0:01:36]} 24. Qd3 {[%emt 0:05:55] White has more active pieces.} Bxf5 {[%emt 0:06:04]} (24... Qd7 $16 {was necessary.}) 25. Qxf5 {[%emt 0:02:46]} Rh6 {[%emt 0:00:28]} (25... Qd7 $16 26. Qxd7 (26. Bxf6 Qxf5 27. Rxf5 gxf6 $16) 26... Nxd7) 26. Rae1 $18 {[%emt 0:03:41][%cal Ba1e1,Be1e6,Be6e7][%mdl 32]} Qd7 {[%emt 0:01:17]} 27. Re6 {[%emt 0:00:37][%cal Re6f6] aiming for Rxf6.} Rd8 $2 {[%emt 0:10:15]} (27... Nh7 {keeps fighting.} 28. Rxh6 Qxf5 29. Rxf5 gxh6) 28. Rf3 {[%emt 0:07:18]} (28. Bb6 $142 Rb8 29. Rxf6 (29. Bxa5 Ne4 $11) 29... Qxf5 30. R6xf5) 28... Bd6 {[%emt 0:01:24]} 29. Bxf6 {[%emt 0:02:43]} Rf8 {[%emt 0:02:47]} 30. Kh1 {[%emt 0:06:27][%cal Oc2c4] Strongly threatening c4!} Bb8 $2 {[%emt 0:04:11][%mdl 8192] Black cannot hold the game after this.} (30... gxf6 $16 31. h4 Qd8) 31. Re7 {[%emt 0:04:41] White is clearly winning.} Qxf5 {[%emt 0:00:45]} 32. Rxg7+ {[%emt 0:00:30]} (32. Rxf5 Rhxf6 33. Rxf6 gxf6 $11) 32... Kh8 {[%emt 0:00:06]} 33. Nf7+ {[%emt 0:00:18]} ({Not} 33. Rxf5 Rhxf6 34. Rxf6 Kxg7 35. Rxf8 (35. Rxc6 $2 Rf1#) 35... Kxf8 $16) 33... Rxf7 {[%emt 0:00:16]} 34. Rxf7+ {[%emt 0:00:02]} Rxf6 {[%emt 0:02:31]} 35. Rxf5 {[%emt 0:00:05][%mdl 4096] Endgame. KRR-KRB} Re6 {[%emt 0:00:11]} 36. g3 {[%emt 0:00:15]} Be5 {[%emt 0:01:44]} 37. c3 {[%emt 0:00:47]} Kg8 {[%emt 0:04:12]} 38. Rd7 {[%emt 0:00:24]} h4 {[%emt 0:00:43]} 39. gxh4 {[%emt 0:00:06]} Bd6 {[%emt 0:00:19]} 40. Kg2 {[%emt 0:00:11]} Bc5 {[%emt 0:00:29]} 41. Kf3 {[%emt 0:30:40]} Re3+ {[%emt 0:31:31]} 42. Kg4 {[%emt 0:00:05]} Re2 {[%emt 0:00:25]} 43. Kh5 {[%emt 0:01:26]} Be7 {[%emt 0:00:00]} 44. Rc7 {[%emt 0:00:00]} Re6 {[%emt 0:00:00]} 45. Kg4 {[%emt 0:00:00]} Kg7 {[%emt 0:00:00]} 46. h5 {[%emt 0:00:00][%cal Bh4h5,Bh5h6][%mdl 32]} Kg8 {[%emt 0:00:00] [#]} 47. h6 $1 {[%emt 0:00:00] Weighted Error Value: White=0.23 (precise) /Black=0.49.  Loses game:     	---       	Black=1      Mistake:       	White=1     	Black=4      Inaccurate:     	White=4     	Black=1      OK:         	White=8     	Black=10     Best:        	White=3     	Black=1} 1-0

[Event "Karel Janecek Open 2024"]
[Site "Prague"]
[Date "2024.02.28"]
[Round "1.6"]
[White "Tolhuizen, Ludo"]
[Black "Heberla, Bartlomiej"]
[Result "0-1"]
[ECO "E14"]
[WhiteElo "1993"]
[BlackElo "2546"]
[Annotator "TA"]
[PlyCount "46"]
[EventDate "2024.02.22"]
[EventType "swiss"]
[EventCountry "CZE"]
[SourceTitle "playchess.com"]
[Source "ChessBase"]
[SourceQuality "1"]
[TimeControl "40/5400+30:1800+30"]

{[%evp 16,46,33,40,19,0,0,0,0,0,0,0,0,0,0,-18,0,-24,-19,-39,-27,-25,-24,-66,-41,-47,-51,-51,-49,-104,-98,-508,-490]} 1. d4 {[%emt 0:00:03]} Nf6 {[%emt 0:00:03]} 2. Nf3 {[%emt 0:00:04]} e6 {[%emt 0:00:05]} 3. e3 {[%emt 0:00:06][%cal Be2e3,Be3d4][%mdl 32]} b6 {[%emt 0:00:17]} 4. Bd3 {[%emt 0:00:05]} Bb7 {[%emt 0:00:05]} 5. O-O {[%emt 0:00:05]} c5 {[%emt 0:01:39]} 6. c4 {[%emt 0:00:09]} cxd4 {[%emt 0:04:26]} 7. exd4 {[%emt 0:00:09]} Be7 {[%emt 0:00:03]} 8. Nc3 {[%emt 0:00:13]} O-O {[%emt 0:00:06] [#]} 9. d5 $1 {[%emt 0:01:20]} Na6 {[%emt 0:01:00]} 10. Re1 {[%emt 0:23:45]} Nc7 {[%emt 0:11:01]} 11. dxe6 {[%emt 0:06:15]} Nxe6 {[%emt 0:02:59] The position is equal.} 12. Nd5 {[%emt 0:12:09]} Re8 {[%emt 0:02:37]} 13. b3 {[%emt 0:12:37]} Nxd5 {[%emt 0:11:01]} 14. cxd5 {[%emt 0:01:10]} Nc7 {[%emt 0:00:04][%cal Be6c7,Bc7e8,Be8d6][%mdl 32]} 15. Bb2 {[%emt 0:23:20] [#] Against Bf6. Ne5 is the strong threat.} Bf6 {[%emt 0:11:43]} 16. Rxe8+ {[%emt 0:02:57]} Nxe8 {[%emt 0:00:09]} 17. Bxf6 {[%emt 0:00:34]} Qxf6 {[%emt 0:04:55]} 18. Bc4 {[%emt 0:00:44]} Nd6 {[%emt 0:01:55]} 19. a4 {[%emt 0:00:20]} Rc8 {[%emt 0:01:46] Black is more active.} 20. Rc1 {[%emt 0:04:15]} Qf4 {[%emt 0:00:21][%cal Rd6c4]} 21. g3 {[%emt 0:02:51]} Qe4 {[%emt 0:00:50][%cal Rd6c4]} 22. Ng5 {[%emt 0:02:03]} ({White should try} 22. Nd2 $1 $15 Qd4 23. Be2) 22... Qf5 $17 {[%emt 0:00:11]} 23. Qd2 {[%emt 0:00:17][%mdl 8192]} (23. h4 $17) 23... h6 {[%emt 0:00:31] Weighted Error Value: White=0.56/Black=0.00 (flawless) .  Loses game:     	White=1     	---        Mistake:       	White=1     	---        Inaccurate:     	White=1     	---        OK:         	White=3     	Black=9      Best:        	---       	Black=1} 0-1

[Event "Karel Janecek Open 2024"]
[Site "Prague"]
[Date "2024.02.28"]
[Round "1.7"]
[White "Bharath Subramaniyam H"]
[Black "Taus, Martin"]
[Result "1-0"]
[ECO "D02"]
[WhiteElo "2515"]
[BlackElo "1994"]
[Annotator "TA"]
[PlyCount "41"]
[EventDate "2024.02.22"]
[EventType "swiss"]
[EventCountry "CZE"]
[SourceTitle "playchess.com"]
[Source "ChessBase"]
[SourceQuality "1"]
[TimeControl "40/5400+30:1800+30"]

{[%evp 15,41,15,27,6,21,7,40,31,45,0,61,53,75,51,84,42,58,47,108,74,149,144,144,160,155,154,400,414]} 1. d4 {[%emt 0:01:36]} d5 {[%emt 0:00:09]} 2. Nf3 {[%emt 0:00:49]} Nc6 {[%emt 0:00:18]} 3. Bf4 {[%emt 0:02:25]} Bg4 {[%emt 0:00:41]} 4. e3 {[%emt 0:01:42]} e6 {[%emt 0:00:21]} 5. c4 {[%emt 0:05:11]} Bd6 {[%emt 0:03:35]} 6. cxd5 {[%emt 0:05:34]} exd5 {[%emt 0:00:15]} 7. Bxd6 {[%emt 0:00:23]} Qxd6 {[%emt 0:00:28]} 8. Nc3 {[%emt 0:00:02]} Nf6 {[%emt 0:02:08]} 9. Be2 {[%emt 0:01:36]} O-O {[%emt 0:00:24]} 10. O-O {[%emt 0:00:10]} Ne4 {[%emt 0:12:00]} 11. Rc1 {[%emt 0:04:28] White is slightly better.} Rfe8 {[%emt 0:02:27]} 12. a3 {[%emt 0:05:58]} Re6 {[%emt 0:01:36]} (12... Nxc3 $11 13. Rxc3 Nd8) 13. h3 {[%emt 0:20:01]} Bh5 {[%emt 0:19:33]} 14. b4 {[%emt 0:05:30]} (14. Nxe4 {simplifies} dxe4 15. Nd2 Bxe2 16. Qxe2 Nd8 17. b4) 14... a6 {[%emt 0:08:01]} 15. Na4 {[%emt 0:08:23]} (15. Nxe4 {simplifies} dxe4 16. Nd2 Bxe2 17. Qxe2 Rae8 18. b5) 15... b6 {[%emt 0:12:20]} 16. Nc3 {[%emt 0:03:16]} Rg6 {[%emt 0:08:24]} ({Black should try} 16... Bxf3 $14 17. Bxf3 Nxc3 18. Rxc3 g6) 17. Nh4 {[%emt 0:13:32]} Nxc3 {[%emt 0:12:39]} ({Better is} 17... Bxe2 18. Qxe2 (18. Nxe2 Rf6 $16) 18... Re6) 18. Rxc3 $16 {[%emt 0:00:02]} Bxe2 {[%emt 0:00:07]} 19. Qxe2 {[%emt 0:00:09]} Re6 {[%emt 0:00:19]} 20. Qc2 {[%emt 0:01:20] aiming for Nf5.} a5 $2 {[%emt 0:06:30] [#]} (20... g6 $16 21. Rc1 Na7 22. Rxc7 Qf8) 21. Nf5 $1 {[%emt 0:01:17] Weighted Error Value: White=0.20 (precise) /Black=0.48.  Loses game:     	---       	Black=1      Mistake:       	---       	Black=3      Inaccurate:     	White=3     	Black=2      OK:         	White=2     	Black=2      Strong:       	White=1     	---} 1-0